[Event "Titled Tuesday Blitz June 1 2021"]
[White "Sokolovsky, Yahli"]
[Black "Perez Ponsa, Federico"]
[WhiteFideId "2820242"]
[BlackFideId "117927"]
[WhiteElo "1770"]
[BlackElo "2672"]
[Result "0-1"]
[Round "01"]
[TimeControl "180+1"]
[Date "2021.06.01"]
[WhiteClock "0:00:04"]
[BlackClock "0:00:14"]

1. b3 {[%clk 0:03:00]}  d5 {[%clk 0:02:53]} 2. Bb2 {[%clk 0:03:01]}  c6 {[%clk 0:02:51]} 3. e3 {[%clk 0:03:01]}  Bf5 {[%clk 0:02:51]} 4. f4 {[%clk 0:03:00]}  Nf6 {[%clk 0:02:47]} 5. Nf3 {[%clk 0:03:00]}  e6 {[%clk 0:02:47]} 6. Be2 {[%clk 0:02:59]}  h6 {[%clk 0:02:48]} 7. O-O {[%clk 0:02:59]}  Be7 {[%clk 0:02:47]} 8. h3 {[%clk 0:02:48]}  Nbd7 {[%clk 0:02:40]} 9. Kh2 {[%clk 0:02:01]}  Qc7 {[%clk 0:02:34]} 10. Ne5 {[%clk 0:01:50]}  Nxe5 {[%clk 0:02:18]} 11. Bxe5 {[%clk 0:01:42]}  Bd6 {[%clk 0:02:17]} 12. d4 {[%clk 0:01:42]}  Bxe5 {[%clk 0:02:03]} 13. fxe5 {[%clk 0:01:37]}  Ne4 {[%clk 0:02:04]} 14. c4 {[%clk 0:01:11]}  O-O {[%clk 0:01:41]} 15. Kg1 {[%clk 0:01:01]}  Rad8 {[%clk 0:01:32]} 16. Nd2 {[%clk 0:00:57]}  c5 {[%clk 0:01:17]} 17. Nf3 {[%clk 0:00:26]}  Ng3 {[%clk 0:00:57]} 18. Re1 {[%clk 0:00:24]}  Be4 {[%clk 0:00:57]} 19. Rc1 {[%clk 0:00:18]}  Nf5 {[%clk 0:00:53]} 20. Bd3 {[%clk 0:00:14]}  cxd4 {[%clk 0:00:44]} 21. exd4 {[%clk 0:00:11]}  Bxf3 {[%clk 0:00:42]} 22. Qxf3 {[%clk 0:00:12]}  Nxd4 {[%clk 0:00:42]} 23. Qg4 {[%clk 0:00:09]}  Nc6 {[%clk 0:00:37]} 24. cxd5 {[%clk 0:00:08]}  Rxd5 {[%clk 0:00:37]} 25. Be4 {[%clk 0:00:06]}  Rxe5 {[%clk 0:00:33]} 26. Qg3 {[%clk 0:00:06]}  Qb6+ {[%clk 0:00:31]} 27. Kh2 {[%clk 0:00:05]}  Rg5 {[%clk 0:00:31]} 28. Qf3 {[%clk 0:00:05]}  Nd4 {[%clk 0:00:31]} 29. Qe3 {[%clk 0:00:05]}  Qd6+ {[%clk 0:00:27]} 30. Kh1 {[%clk 0:00:04]}  b6 {[%clk 0:00:25]} 31. Red1 {[%clk 0:00:04]}  e5 {[%clk 0:00:25]} 32. Bb1 {[%clk 0:00:04]}  Qd5 {[%clk 0:00:23]} 33. Be4 {[%clk 0:00:03]}  Qd6 {[%clk 0:00:22]} 34. Bb1 {[%clk 0:00:04]}  g6 {[%clk 0:00:23]} 35. Rc3 {[%clk 0:00:02]}  Kg7 {[%clk 0:00:24]} 36. Rdc1 {[%clk 0:00:03]}  Qf6 {[%clk 0:00:22]} 37. Rc7 {[%clk 0:00:02]}  Ne6 {[%clk 0:00:17]} 38. R7c6 {[%clk 0:00:02]}  Qf4 {[%clk 0:00:16]} 39. Qe2 {[%clk 0:00:02]}  Nd4 {[%clk 0:00:14]} 40. Qc4 {[%clk 0:00:01]}  Nxc6 {[%clk 0:00:13]} 41. Qxf4 {[%clk 0:00:02]}  exf4 {[%clk 0:00:12]} 42. Rxc6 {[%clk 0:00:03]}  Re5 {[%clk 0:00:12]} 43. Rc1 {[%clk 0:00:02]}  Rfe8 {[%clk 0:00:12]} 44. Kh2 {[%clk 0:00:02]}  Re1 {[%clk 0:00:12]} 45. Rxe1 {[%clk 0:00:02]}  Rxe1 {[%clk 0:00:13]} 46. Bd3 {[%clk 0:00:03]}  Rd1 {[%clk 0:00:13]} 47. Bc4 {[%clk 0:00:04]}  Rd2 {[%clk 0:00:14]} 48. a4 {[%clk 0:00:04]}  f3 {[%clk 0:00:14]} 0-1


[Site "https://www.chess.com"]

[Event "Titled Tuesday Blitz June 1 2021"]
[White "Supi, Luis Paulo"]
[Black "Steven_Rojas"]
[WhiteFideId "2106388"]
[WhiteElo "2369"]
[BlackElo "2459"]
[Result "1-0"]
[Round "01"]
[TimeControl "180+1"]
[Date "2021.06.01"]
[WhiteClock "0:01:29"]
[BlackClock "0:00:01"]

1. e4 {[%clk 0:03:00]}  e5 {[%clk 0:03:00]} 2. Nf3 {[%clk 0:03:00]}  Nc6 {[%clk 0:03:00]} 3. Nc3 {[%clk 0:03:01]}  g6 {[%clk 0:02:55]} 4. d4 {[%clk 0:02:55]}  exd4 {[%clk 0:02:55]} 5. Nxd4 {[%clk 0:02:56]}  Bg7 {[%clk 0:02:51]} 6. Be3 {[%clk 0:02:56]}  Nf6 {[%clk 0:02:50]} 7. Qd2 {[%clk 0:02:41]}  O-O {[%clk 0:02:36]} 8. O-O-O {[%clk 0:02:41]}  Re8 {[%clk 0:02:16]} 9. f3 {[%clk 0:02:40]}  d5 {[%clk 0:02:16]} 10. Bb5 {[%clk 0:02:37]}  Bd7 {[%clk 0:01:06]} 11. exd5 {[%clk 0:02:36]}  Nb4 {[%clk 0:00:59]} 12. Bc4 {[%clk 0:02:34]}  c5 {[%clk 0:00:31]} 13. dxc6 {[%clk 0:02:31]}  bxc6 {[%clk 0:00:32]} 14. Bh6 {[%clk 0:02:26]}  Qa5 {[%clk 0:00:29]} 15. Bxg7 {[%clk 0:02:25]}  Kxg7 {[%clk 0:00:29]} 16. a3 {[%clk 0:02:25]}  Nbd5 {[%clk 0:00:28]} 17. Nxd5 {[%clk 0:02:25]}  Qxd2+ {[%clk 0:00:29]} 18. Kxd2 {[%clk 0:02:25]}  cxd5 {[%clk 0:00:29]} 19. Bd3 {[%clk 0:02:25]}  Reb8 {[%clk 0:00:27]} 20. b3 {[%clk 0:02:25]}  a5 {[%clk 0:00:27]} 21. Rhe1 {[%clk 0:02:25]}  Rb6 {[%clk 0:00:27]} 22. Re5 {[%clk 0:02:23]}  h5 {[%clk 0:00:25]} 23. Rde1 {[%clk 0:02:23]}  a4 {[%clk 0:00:24]} 24. b4 {[%clk 0:02:22]}  Rc8 {[%clk 0:00:23]} 25. h4 {[%clk 0:02:22]}  Rc7 {[%clk 0:00:18]} 26. g3 {[%clk 0:02:20]}  Rc8 {[%clk 0:00:18]} 27. c3 {[%clk 0:02:16]}  Bh3 {[%clk 0:00:18]} 28. Bb1 {[%clk 0:02:14]}  Bd7 {[%clk 0:00:18]} 29. Ba2 {[%clk 0:02:14]}  Rd6 {[%clk 0:00:17]} 30. Re7 {[%clk 0:02:14]}  Rd8 {[%clk 0:00:15]} 31. R7e5 {[%clk 0:02:07]}  Rc8 {[%clk 0:00:15]} 32. R1e3 {[%clk 0:02:07]}  Rd8 {[%clk 0:00:15]} 33. Ne2 {[%clk 0:01:59]}  Bb5 {[%clk 0:00:15]} 34. Nd4 {[%clk 0:01:58]}  Bd7 {[%clk 0:00:15]} 35. Re2 {[%clk 0:01:57]}  Be8 {[%clk 0:00:16]} 36. Bb1 {[%clk 0:01:50]}  Bd7 {[%clk 0:00:16]} 37. Bd3 {[%clk 0:01:51]}  Rb8 {[%clk 0:00:16]} 38. Rg2 {[%clk 0:01:49]}  Bh3 {[%clk 0:00:14]} 39. Rg1 {[%clk 0:01:48]}  Bd7 {[%clk 0:00:15]} 40. Be2 {[%clk 0:01:48]}  Rb7 {[%clk 0:00:12]} 41. Rb1 {[%clk 0:01:42]}  Rb8 {[%clk 0:00:12]} 42. b5 {[%clk 0:01:42]}  Rdb6 {[%clk 0:00:10]} 43. Rb4 {[%clk 0:01:42]}  Kf8 {[%clk 0:00:10]} 44. Rxa4 {[%clk 0:01:42]}  Be8 {[%clk 0:00:09]} 45. Rb4 {[%clk 0:01:41]}  Ra8 {[%clk 0:00:06]} 46. a4 {[%clk 0:01:41]}  Ra7 {[%clk 0:00:07]} 47. Bd1 {[%clk 0:01:41]}  Rd6 {[%clk 0:00:06]} 48. Bb3 {[%clk 0:01:41]}  Rb6 {[%clk 0:00:05]} 49. Bxd5 {[%clk 0:01:38]}  Nd7 {[%clk 0:00:05]} 50. Re1 {[%clk 0:01:38]}  Nc5 {[%clk 0:00:06]} 51. Ra1 {[%clk 0:01:38]}  Rd6 {[%clk 0:00:05]} 52. c4 {[%clk 0:01:38]}  Rd8 {[%clk 0:00:01]} 53. a5 {[%clk 0:01:38]}  Re7 {[%clk 0:00:02]} 54. a6 {[%clk 0:01:36]}  Ra7 {[%clk 0:00:01]} 55. Re1 {[%clk 0:01:33]}  Rb8 {[%clk 0:00:01]} 56. Nc6 {[%clk 0:01:32]}  Bxc6 {[%clk 0:00:02]} 57. Bxc6 {[%clk 0:01:33]}  Nxa6 {[%clk 0:00:02]} 58. Ra4 {[%clk 0:01:31]}  Rb6 {[%clk 0:00:01]} 59. Rea1 {[%clk 0:01:29]} 1-0


[Site "https://www.chess.com"]

[Event "Titled Tuesday Blitz June 1 2021"]
[White "Topalov, Aleksandar"]
[Black "Vazquez, Guillermo"]
[WhiteFideId "925659"]
[BlackFideId "3702308"]
[WhiteElo "2228"]
[BlackElo "2536"]
[Result "0-1"]
[Round "01"]
[TimeControl "180+1"]
[Date "2021.06.01"]
[WhiteClock "0:00:04"]
[BlackClock "0:02:06"]

1. b3 {[%clk 0:00:15]}  e5 {[%clk 0:02:53]} 2. Bb2 {[%clk 0:00:15]}  Nc6 {[%clk 0:02:53]} 3. c4 {[%clk 0:00:15]}  Nf6 {[%clk 0:02:51]} 4. e3 {[%clk 0:00:15]}  d5 {[%clk 0:02:39]} 5. cxd5 {[%clk 0:00:16]}  Qxd5 {[%clk 0:02:39]} 6. a3 {[%clk 0:00:17]}  Be6 {[%clk 0:02:37]} 7. b4 {[%clk 0:00:17]}  a6 {[%clk 0:02:37]} 8. Nf3 {[%clk 0:00:17]}  Rd8 {[%clk 0:02:32]} 9. Nc3 {[%clk 0:00:17]}  Qd7 {[%clk 0:02:30]} 10. Qc2 {[%clk 0:00:17]}  Bf5 {[%clk 0:02:29]} 11. e4 {[%clk 0:00:16]}  Bg4 {[%clk 0:02:28]} 12. Nd5 {[%clk 0:00:14]}  Nxd5 {[%clk 0:02:24]} 13. exd5 {[%clk 0:00:14]}  Bxf3 {[%clk 0:02:25]} 14. gxf3 {[%clk 0:00:13]}  Qxd5 {[%clk 0:02:24]} 15. Bc4 {[%clk 0:00:12]}  Qxf3 {[%clk 0:02:23]} 16. Rg1 {[%clk 0:00:12]}  g6 {[%clk 0:02:18]} 17. Be2 {[%clk 0:00:10]}  Qd5 {[%clk 0:02:10]} 18. Bc4 {[%clk 0:00:10]}  Qd6 {[%clk 0:02:09]} 19. b5 {[%clk 0:00:08]}  axb5 {[%clk 0:02:07]} 20. Bxb5 {[%clk 0:00:09]}  Bh6 {[%clk 0:02:08]} 21. Bc3 {[%clk 0:00:08]}  O-O {[%clk 0:02:07]} 22. Bc4 {[%clk 0:00:07]}  Nd4 {[%clk 0:02:07]} 23. Bxd4 {[%clk 0:00:06]}  Qxd4 {[%clk 0:02:08]} 24. Rxg6+ {[%clk 0:00:05]}  hxg6 {[%clk 0:02:06]} 25. Qxg6+ {[%clk 0:00:05]}  Bg7 {[%clk 0:02:07]} 26. Bd3 {[%clk 0:00:04]}  Qxd3 {[%clk 0:02:06]} 0-1


[Site "https://www.chess.com"]

[Event "Titled Tuesday Blitz June 1 2021"]
[White "Xiong, Jeffery"]
[Black "Kung, Thomas"]
[WhiteFideId "2047640"]
[BlackFideId "30914272"]
[WhiteElo "2724"]
[BlackElo "2475"]
[Result "1-0"]
[Round "01"]
[TimeControl "180+1"]
[Date "2021.06.01"]
[WhiteClock "0:00:39"]
[BlackClock "0:00:22"]

1. e4 {[%clk 0:02:39]}  e6 {[%clk 0:02:59]} 2. d4 {[%clk 0:02:38]}  d5 {[%clk 0:02:59]} 3. exd5 {[%clk 0:02:39]}  exd5 {[%clk 0:02:58]} 4. Nf3 {[%clk 0:02:40]}  Bd6 {[%clk 0:02:57]} 5. c4 {[%clk 0:02:40]}  Nf6 {[%clk 0:02:56]} 6. c5 {[%clk 0:02:38]}  Be7 {[%clk 0:02:55]} 7. Bd3 {[%clk 0:02:39]}  O-O {[%clk 0:02:54]} 8. O-O {[%clk 0:02:39]}  b6 {[%clk 0:02:53]} 9. Be3 {[%clk 0:02:39]}  Re8 {[%clk 0:02:36]} 10. h3 {[%clk 0:02:37]}  Nbd7 {[%clk 0:02:35]} 11. b4 {[%clk 0:02:23]}  a5 {[%clk 0:02:29]} 12. c6 {[%clk 0:02:23]}  Nf8 {[%clk 0:02:29]} 13. b5 {[%clk 0:02:24]}  Ng6 {[%clk 0:02:27]} 14. Nbd2 {[%clk 0:02:23]}  Bd6 {[%clk 0:02:21]} 15. Re1 {[%clk 0:02:22]}  h6 {[%clk 0:02:11]} 16. Qc2 {[%clk 0:02:20]}  Nf4 {[%clk 0:02:07]} 17. Bxf4 {[%clk 0:02:12]}  Bxf4 {[%clk 0:02:05]} 18. Rxe8+ {[%clk 0:02:13]}  Nxe8 {[%clk 0:02:00]} 19. a4 {[%clk 0:02:13]}  Be6 {[%clk 0:01:59]} 20. Re1 {[%clk 0:02:12]}  Nd6 {[%clk 0:01:59]} 21. Ne5 {[%clk 0:02:11]}  Qg5 {[%clk 0:01:50]} 22. Ndf3 {[%clk 0:02:10]}  Qe7 {[%clk 0:01:31]} 23. Nd7 {[%clk 0:01:40]}  Re8 {[%clk 0:01:22]} 24. h4 {[%clk 0:01:37]}  h5 {[%clk 0:01:13]} 25. g3 {[%clk 0:01:32]}  Bh6 {[%clk 0:01:12]} 26. Re5 {[%clk 0:01:31]}  Qd8 {[%clk 0:01:06]} 27. Rxh5 {[%clk 0:01:21]}  Bg4 {[%clk 0:01:05]} 28. Rxh6 {[%clk 0:01:14]}  gxh6 {[%clk 0:01:04]} 29. Nfe5 {[%clk 0:01:15]}  Be6 {[%clk 0:00:49]} 30. Qc1 {[%clk 0:00:51]}  Kg7 {[%clk 0:00:45]} 31. Qf4 {[%clk 0:00:50]}  f6 {[%clk 0:00:41]} 32. Ng4 {[%clk 0:00:50]}  Bxg4 {[%clk 0:00:30]} 33. Qxg4+ {[%clk 0:00:51]}  Kh8 {[%clk 0:00:30]} 34. Qg6 {[%clk 0:00:48]}  Ne4 {[%clk 0:00:29]} 35. Qxh6+ {[%clk 0:00:45]}  Kg8 {[%clk 0:00:29]} 36. Bxe4 {[%clk 0:00:43]}  dxe4 {[%clk 0:00:26]} 37. Qg6+ {[%clk 0:00:39]}  Kh8 {[%clk 0:00:26]} 38. Nxf6 {[%clk 0:00:40]}  Re7 {[%clk 0:00:22]} 39. Qh6+ {[%clk 0:00:39]} 1-0


[Site "https://www.chess.com"]

[Event "Titled Tuesday Blitz June 1 2021"]
[White "Alinasab, Mobina"]
[Black "Babazada, Khazar"]
[WhiteFideId "12528897"]
[BlackFideId "13413554"]
[WhiteElo "2061"]
[BlackElo "2344"]
[Result "1-0"]
[Round "02"]
[TimeControl "180+1"]
[Date "2021.06.01"]
[WhiteClock "0:00:34"]
[BlackClock "0:00:32"]

1. e4 {[%clk 0:03:00]}  Nf6 {[%clk 0:02:59]} 2. e5 {[%clk 0:03:00]}  Nd5 {[%clk 0:03:00]} 3. d4 {[%clk 0:02:59]}  Nb6 {[%clk 0:03:00]} 4. Nf3 {[%clk 0:02:58]}  d6 {[%clk 0:03:01]} 5. c4 {[%clk 0:02:53]}  g6 {[%clk 0:02:58]} 6. exd6 {[%clk 0:02:53]}  cxd6 {[%clk 0:02:59]} 7. h3 {[%clk 0:02:53]}  Bg7 {[%clk 0:02:57]} 8. Nc3 {[%clk 0:02:53]}  O-O {[%clk 0:02:58]} 9. Be2 {[%clk 0:02:53]}  Bf5 {[%clk 0:02:56]} 10. O-O {[%clk 0:02:52]}  Nc6 {[%clk 0:02:56]} 11. Be3 {[%clk 0:02:51]}  d5 {[%clk 0:02:54]} 12. c5 {[%clk 0:02:46]}  Nc4 {[%clk 0:02:54]} 13. Qb3 {[%clk 0:02:14]}  N6a5 {[%clk 0:02:37]} 14. Qb4 {[%clk 0:02:12]}  Nxe3 {[%clk 0:02:24]} 15. fxe3 {[%clk 0:02:13]}  b6 {[%clk 0:02:24]} 16. cxb6 {[%clk 0:01:16]}  axb6 {[%clk 0:02:25]} 17. Bb5 {[%clk 0:01:08]}  e6 {[%clk 0:01:59]} 18. g4 {[%clk 0:00:58]}  Be4 {[%clk 0:01:59]} 19. Nxe4 {[%clk 0:00:51]}  dxe4 {[%clk 0:02:00]} 20. Nd2 {[%clk 0:00:48]}  Qg5 {[%clk 0:01:54]} 21. Rae1 {[%clk 0:00:34]}  f5 {[%clk 0:00:38]} 22. Bc4 {[%clk 0:00:33]}  Nxc4 {[%clk 0:00:32]} 23. Qxc4 {[%clk 0:00:34]} 1-0


[Site "https://www.chess.com"]

[Event "Titled Tuesday Blitz June 1 2021"]
[White "Balla, Tamas-Kristof"]
[Black "Balakrishnan, Praveen"]
[WhiteFideId "1208497"]
[BlackFideId "2064871"]
[WhiteElo "2334"]
[BlackElo "2237"]
[Result "0-1"]
[Round "02"]
[TimeControl "180+1"]
[Date "2021.06.01"]
[WhiteClock "0:00:06"]
[BlackClock "0:00:22"]

1. f4 {[%clk 0:03:00]}  e5 {[%clk 0:02:55]} 2. fxe5 {[%clk 0:02:59]}  d6 {[%clk 0:02:55]} 3. exd6 {[%clk 0:03:00]}  Bxd6 {[%clk 0:02:55]} 4. Nf3 {[%clk 0:03:00]}  g5 {[%clk 0:02:54]} 5. g3 {[%clk 0:02:57]}  g4 {[%clk 0:02:53]} 6. Nh4 {[%clk 0:02:57]}  Ne7 {[%clk 0:02:53]} 7. d4 {[%clk 0:02:55]}  Ng6 {[%clk 0:02:53]} 8. Nxg6 {[%clk 0:02:52]}  hxg6 {[%clk 0:02:54]} 9. Qd3 {[%clk 0:02:51]}  Nc6 {[%clk 0:02:50]} 10. c3 {[%clk 0:02:51]}  Bf5 {[%clk 0:02:49]} 11. e4 {[%clk 0:02:50]}  Qe7 {[%clk 0:02:49]} 12. Bg2 {[%clk 0:02:49]}  O-O-O {[%clk 0:02:49]} 13. Be3 {[%clk 0:02:46]}  Bd7 {[%clk 0:02:39]} 14. Nd2 {[%clk 0:02:32]}  Rxh2 {[%clk 0:02:32]} 15. Rxh2 {[%clk 0:02:24]}  Bxg3+ {[%clk 0:02:33]} 16. Bf2 {[%clk 0:02:23]}  Bxh2 {[%clk 0:02:32]} 17. O-O-O {[%clk 0:02:22]}  f5 {[%clk 0:02:26]} 18. e5 {[%clk 0:02:14]}  f4 {[%clk 0:02:05]} 19. Be4 {[%clk 0:01:23]}  g3 {[%clk 0:01:53]} 20. Bg1 {[%clk 0:01:22]}  Nxe5 {[%clk 0:01:30]} 21. dxe5 {[%clk 0:01:11]}  Ba4 {[%clk 0:01:30]} 22. Bd4 {[%clk 0:00:54]}  Bxd1 {[%clk 0:01:22]} 23. Kxd1 {[%clk 0:00:53]}  c6 {[%clk 0:00:47]} 24. Qf3 {[%clk 0:00:39]}  c5 {[%clk 0:00:42]} 25. Qg4+ {[%clk 0:00:36]}  Kb8 {[%clk 0:00:36]} 26. Nf3 {[%clk 0:00:27]}  cxd4 {[%clk 0:00:31]} 27. cxd4 {[%clk 0:00:27]}  Qb4 {[%clk 0:00:28]} 28. e6 {[%clk 0:00:12]}  Rxd4+ {[%clk 0:00:23]} 29. Nxd4 {[%clk 0:00:11]}  Qxd4+ {[%clk 0:00:24]} 30. Kc1 {[%clk 0:00:10]}  Qxe4 {[%clk 0:00:22]} 31. Qg5 {[%clk 0:00:07]}  Qxe6 {[%clk 0:00:22]} 32. Qd8+ {[%clk 0:00:06]}  Qc8+ {[%clk 0:00:22]} 0-1


[Site "https://www.chess.com"]

[Event "Titled Tuesday Blitz June 1 2021"]
[White "Baskin, Robert"]
[Black "Lagarde, Maxime"]
[WhiteFideId "24662402"]
[BlackFideId "662399"]
[WhiteElo "2462"]
[BlackElo "2630"]
[Result "1/2-1/2"]
[Round "02"]
[TimeControl "180+1"]
[Date "2021.06.01"]
[WhiteClock "0:00:07"]
[BlackClock "0:01:22"]

1. d4 {[%clk 0:03:00]}  Nc6 {[%clk 0:02:59]} 2. Nf3 {[%clk 0:02:52]}  d6 {[%clk 0:02:59]} 3. e4 {[%clk 0:02:51]}  Nf6 {[%clk 0:02:58]} 4. Nc3 {[%clk 0:02:50]}  g6 {[%clk 0:02:57]} 5. Be2 {[%clk 0:02:49]}  Bg7 {[%clk 0:02:57]} 6. O-O {[%clk 0:02:49]}  O-O {[%clk 0:02:57]} 7. d5 {[%clk 0:02:49]}  Nb8 {[%clk 0:02:57]} 8. h3 {[%clk 0:02:49]}  e5 {[%clk 0:02:57]} 9. dxe6 {[%clk 0:02:48]}  Bxe6 {[%clk 0:02:58]} 10. Nd4 {[%clk 0:02:49]}  Re8 {[%clk 0:02:56]} 11. Re1 {[%clk 0:02:47]}  Nc6 {[%clk 0:02:55]} 12. Nxe6 {[%clk 0:02:39]}  Rxe6 {[%clk 0:02:55]} 13. Bc4 {[%clk 0:02:39]}  Re8 {[%clk 0:02:55]} 14. Bg5 {[%clk 0:02:37]}  h6 {[%clk 0:02:55]} 15. Bh4 {[%clk 0:02:36]}  g5 {[%clk 0:02:54]} 16. Bg3 {[%clk 0:02:36]}  Ne5 {[%clk 0:02:55]} 17. Bb3 {[%clk 0:02:36]}  c6 {[%clk 0:02:50]} 18. Qd2 {[%clk 0:02:35]}  Qe7 {[%clk 0:02:49]} 19. Rad1 {[%clk 0:02:34]}  Rad8 {[%clk 0:02:49]} 20. Qe3 {[%clk 0:02:27]}  b5 {[%clk 0:02:47]} 21. Ne2 {[%clk 0:02:26]}  c5 {[%clk 0:02:44]} 22. c3 {[%clk 0:02:04]}  Ng6 {[%clk 0:02:41]} 23. Bc2 {[%clk 0:01:24]}  Nxe4 {[%clk 0:02:37]} 24. Qxe4 {[%clk 0:01:24]}  Qxe4 {[%clk 0:02:38]} 25. Bxe4 {[%clk 0:01:24]}  Rxe4 {[%clk 0:02:38]} 26. Rxd6 {[%clk 0:01:22]}  Rde8 {[%clk 0:02:36]} 27. Kf1 {[%clk 0:01:20]}  b4 {[%clk 0:02:33]} 28. cxb4 {[%clk 0:01:06]}  cxb4 {[%clk 0:02:33]} 29. b3 {[%clk 0:01:06]}  Be5 {[%clk 0:02:25]} 30. Bxe5 {[%clk 0:00:53]}  R4xe5 {[%clk 0:02:26]} 31. Rdd1 {[%clk 0:00:52]}  Nh4 {[%clk 0:02:19]} 32. Nd4 {[%clk 0:00:42]}  Rxe1+ {[%clk 0:02:18]} 33. Rxe1 {[%clk 0:00:43]}  Rxe1+ {[%clk 0:02:19]} 34. Kxe1 {[%clk 0:00:44]}  Nxg2+ {[%clk 0:02:20]} 35. Kf1 {[%clk 0:00:43]}  Nf4 {[%clk 0:02:20]} 36. Nc6 {[%clk 0:00:43]}  Nxh3 {[%clk 0:02:14]} 37. Nxb4 {[%clk 0:00:40]}  Nf4 {[%clk 0:02:00]} 38. Nc6 {[%clk 0:00:40]}  Nd3 {[%clk 0:01:58]} 39. Nxa7 {[%clk 0:00:33]}  Nc1 {[%clk 0:01:57]} 40. b4 {[%clk 0:00:34]}  Nxa2 {[%clk 0:01:58]} 41. b5 {[%clk 0:00:34]}  Nb4 {[%clk 0:01:58]} 42. b6 {[%clk 0:00:34]}  Na6 {[%clk 0:01:56]} 43. Nc6 {[%clk 0:00:29]}  Nc5 {[%clk 0:01:55]} 44. Ke2 {[%clk 0:00:15]}  Kg7 {[%clk 0:01:47]} 45. Ke3 {[%clk 0:00:12]}  h5 {[%clk 0:01:47]} 46. Kd4 {[%clk 0:00:12]}  Nb7 {[%clk 0:01:48]} 47. Kd5 {[%clk 0:00:10]}  h4 {[%clk 0:01:47]} 48. Ne5 {[%clk 0:00:09]}  h3 {[%clk 0:01:43]} 49. Nf3 {[%clk 0:00:09]}  g4 {[%clk 0:01:42]} 50. Nh2 {[%clk 0:00:10]}  f5 {[%clk 0:01:42]} 51. Kc6 {[%clk 0:00:09]}  Nd8+ {[%clk 0:01:35]} 52. Kd7 {[%clk 0:00:09]}  Nb7 {[%clk 0:01:33]} 53. Kc6 {[%clk 0:00:07]}  Na5+ {[%clk 0:01:22]} 54. Kb5 {[%clk 0:00:07]}  Nb7 {[%clk 0:01:22]} 55. Kc6 {[%clk 0:00:07]} 1/2-1/2


[Site "https://www.chess.com"]

[Event "Titled Tuesday Blitz June 1 2021"]
[White "Blomqvist, Erik"]
[Black "Demidov, Mikhail"]
[WhiteFideId "1709437"]
[BlackFideId "4197143"]
[WhiteElo "2460"]
[BlackElo "2583"]
[Result "0-1"]
[Round "02"]
[TimeControl "180+1"]
[Date "2021.06.01"]
[WhiteClock "0:00:08"]
[BlackClock "0:01:49"]

1. e4 {[%clk 0:03:00]}  Nf6 {[%clk 0:02:59]} 2. e5 {[%clk 0:03:00]}  Nd5 {[%clk 0:02:59]} 3. d4 {[%clk 0:03:01]}  d6 {[%clk 0:02:59]} 4. Nf3 {[%clk 0:03:02]}  Nb6 {[%clk 0:03:00]} 5. h3 {[%clk 0:02:50]}  g6 {[%clk 0:02:59]} 6. Be2 {[%clk 0:02:40]}  Bg7 {[%clk 0:02:59]} 7. O-O {[%clk 0:02:40]}  O-O {[%clk 0:02:59]} 8. Re1 {[%clk 0:02:38]}  Nc6 {[%clk 0:02:58]} 9. Bf4 {[%clk 0:02:32]}  dxe5 {[%clk 0:02:58]} 10. dxe5 {[%clk 0:02:31]}  Qxd1 {[%clk 0:02:55]} 11. Rxd1 {[%clk 0:02:31]}  Bf5 {[%clk 0:02:55]} 12. Na3 {[%clk 0:02:22]}  Rfd8 {[%clk 0:02:52]} 13. g4 {[%clk 0:02:00]}  Be4 {[%clk 0:02:50]} 14. Ng5 {[%clk 0:01:56]}  Bd5 {[%clk 0:02:50]} 15. c4 {[%clk 0:01:50]}  Be6 {[%clk 0:02:50]} 16. Nxe6 {[%clk 0:01:43]}  fxe6 {[%clk 0:02:51]} 17. Nb5 {[%clk 0:01:32]}  Rxd1+ {[%clk 0:02:21]} 18. Rxd1 {[%clk 0:01:32]}  Rc8 {[%clk 0:02:21]} 19. Bf3 {[%clk 0:01:08]}  Nxc4 {[%clk 0:02:14]} 20. Bxc6 {[%clk 0:01:07]}  bxc6 {[%clk 0:02:15]} 21. Nxa7 {[%clk 0:01:07]}  Rf8 {[%clk 0:02:09]} 22. Bc1 {[%clk 0:00:59]}  Bxe5 {[%clk 0:02:08]} 23. b3 {[%clk 0:00:45]}  Na5 {[%clk 0:02:07]} 24. Bd2 {[%clk 0:00:19]}  Bd4 {[%clk 0:02:06]} 25. Bxa5 {[%clk 0:00:15]}  Bxf2+ {[%clk 0:02:05]} 26. Kg2 {[%clk 0:00:14]}  Bxa7 {[%clk 0:02:06]} 27. Rd2 {[%clk 0:00:12]}  Bb6 {[%clk 0:02:02]} 28. Bb4 {[%clk 0:00:11]}  c5 {[%clk 0:01:57]} 29. Bc3 {[%clk 0:00:12]}  Ra8 {[%clk 0:01:52]} 30. Re2 {[%clk 0:00:09]}  Kf7 {[%clk 0:01:50]} 31. a4 {[%clk 0:00:08]}  c4 {[%clk 0:01:49]} 0-1


[Site "https://www.chess.com"]

[Event "Titled Tuesday Blitz June 1 2021"]
[White "Boyer, Mahel"]
[Black "Nguyen, Ngoc Truong Son"]
[WhiteFideId "45102422"]
[BlackFideId "12401110"]
[WhiteElo "2325"]
[BlackElo "2596"]
[Result "0-1"]
[Round "02"]
[TimeControl "180+1"]
[Date "2021.06.01"]
[WhiteClock "0:00:06"]
[BlackClock "0:00:10"]

1. d4 {[%clk 0:03:00]}  Nf6 {[%clk 0:02:59]} 2. c4 {[%clk 0:03:00]}  c5 {[%clk 0:03:00]} 3. d5 {[%clk 0:03:01]}  e6 {[%clk 0:03:00]} 4. Nc3 {[%clk 0:03:01]}  exd5 {[%clk 0:03:01]} 5. cxd5 {[%clk 0:03:02]}  d6 {[%clk 0:03:01]} 6. e4 {[%clk 0:03:02]}  g6 {[%clk 0:03:01]} 7. Nf3 {[%clk 0:02:53]}  Bg7 {[%clk 0:03:01]} 8. h3 {[%clk 0:02:53]}  O-O {[%clk 0:03:01]} 9. Bd3 {[%clk 0:02:53]}  a6 {[%clk 0:02:58]} 10. a4 {[%clk 0:02:53]}  Re8 {[%clk 0:02:55]} 11. O-O {[%clk 0:02:53]}  Nbd7 {[%clk 0:02:54]} 12. Bg5 {[%clk 0:02:47]}  h6 {[%clk 0:02:49]} 13. Bh4 {[%clk 0:02:43]}  Qe7 {[%clk 0:02:37]} 14. Nd2 {[%clk 0:02:33]}  g5 {[%clk 0:02:32]} 15. Bg3 {[%clk 0:02:32]}  Ne5 {[%clk 0:02:31]} 16. Be2 {[%clk 0:02:24]}  Nfd7 {[%clk 0:02:24]} 17. Bh5 {[%clk 0:02:16]}  Rb8 {[%clk 0:02:16]} 18. f4 {[%clk 0:01:58]}  gxf4 {[%clk 0:02:16]} 19. Bxf4 {[%clk 0:01:59]}  Ng6 {[%clk 0:02:12]} 20. Bxg6 {[%clk 0:01:54]}  fxg6 {[%clk 0:02:13]} 21. Nc4 {[%clk 0:01:55]}  Ne5 {[%clk 0:02:08]} 22. Nxe5 {[%clk 0:01:50]}  Bxe5 {[%clk 0:02:03]} 23. Bxh6 {[%clk 0:01:43]}  b5 {[%clk 0:01:39]} 24. axb5 {[%clk 0:01:42]}  axb5 {[%clk 0:01:40]} 25. Qd2 {[%clk 0:01:23]}  b4 {[%clk 0:01:21]} 26. Ne2 {[%clk 0:01:23]}  Qh4 {[%clk 0:01:21]} 27. Bf4 {[%clk 0:01:02]}  Bd7 {[%clk 0:00:53]} 28. Bxe5 {[%clk 0:00:59]}  Rxe5 {[%clk 0:00:54]} 29. Rf4 {[%clk 0:00:59]}  Qd8 {[%clk 0:00:39]} 30. Raf1 {[%clk 0:00:58]}  Qe7 {[%clk 0:00:36]} 31. Qe3 {[%clk 0:00:44]}  Bb5 {[%clk 0:00:34]} 32. R1f2 {[%clk 0:00:37]}  Bxe2 {[%clk 0:00:30]} 33. Qxe2 {[%clk 0:00:37]}  Re8 {[%clk 0:00:25]} 34. Rf6 {[%clk 0:00:35]}  Qg7 {[%clk 0:00:09]} 35. Qg4 {[%clk 0:00:35]}  g5 {[%clk 0:00:09]} 36. R2f5 {[%clk 0:00:22]}  Rxf5 {[%clk 0:00:09]} 37. Rxf5 {[%clk 0:00:17]}  Re5 {[%clk 0:00:10]} 38. b3 {[%clk 0:00:11]}  Rxf5 {[%clk 0:00:09]} 39. Qxf5 {[%clk 0:00:12]}  Qa1+ {[%clk 0:00:09]} 40. Kh2 {[%clk 0:00:13]}  Qe5+ {[%clk 0:00:09]} 41. Qxe5 {[%clk 0:00:10]}  dxe5 {[%clk 0:00:10]} 42. Kg3 {[%clk 0:00:01]}  c4 {[%clk 0:00:11]} 43. d6 {[%clk 0:00:02]}  Kf7 {[%clk 0:00:10]} 44. bxc4 {[%clk 0:00:03]}  b3 {[%clk 0:00:11]} 45. c5 {[%clk 0:00:04]}  b2 {[%clk 0:00:11]} 46. c6 {[%clk 0:00:05]}  b1=Q {[%clk 0:00:11]} 47. c7 {[%clk 0:00:06]}  Qb7 {[%clk 0:00:10]} 48. Kg4 {[%clk 0:00:05]}  Ke6 {[%clk 0:00:09]} 49. Kxg5 {[%clk 0:00:06]}  Kxd6 {[%clk 0:00:10]} 50. c8=Q {[%clk 0:00:06]}  Qxc8 {[%clk 0:00:10]} 0-1


[Site "https://www.chess.com"]